Cogmind - Beta 17 @@@ ROGUE MODE // 2026.07.20 @ 15:09:35 Player: Cinder Result: Destroyed by D-53 Grenadier with Mini Grenade Launcher Performance ------------- Evolutions (0) 0 Regions Visited (2) 400 Robots Destroyed (26) 130 Value Destroyed (478) 478 Prototype IDs (1) 20 Alien Tech Used (0) 0 Bonus (0) 0 TOTAL SCORE: 1028 Bonus ------- None Cogmind --------- Core Integrity 0/250 Matter 291/300 Energy 132/350 System Corruption 2% Temperature Warm (119) Movement Rolling (110) Ox2 Location -10/Mines Parts ------- > --- POWER (1) -------- (None) > --- PROPULSION (2) --- Wheel > --- UTILITY (2) ------ Large Storage Unit High-capacity Battery > --- WEAPON (2) ------- Light EM Pulse Cannon > --- INVENTORY (15) --- Ion Engine Wheel Wheel Heat Sink Large Matter Pod (150) Improved Terrain Scanner Seismic Detector EM Pulse Gun EM Pulse Gun EM Pulse Gun EM Pulse Gun Light EM Pulse Cannon Peak State ------------ > --- POWER ------------ Light Ion Engine > --- PROPULSION ------- Wheel Wheel > --- UTILITY ---------- Large Storage Unit Improved Terrain Scanner > --- WEAPON ----------- EM Pulse Gun Light EM Pulse Cannon > --- INVENTORY -------- Ion Engine Wheel Wheel Wheel Wheel Heat Sink High-capacity Battery Large Matter Pod Seismic Detector EM Pulse Gun EM Pulse Gun EM Pulse Gun EM Pulse Gun Light EM Pulse Cannon Light EM Pulse Cannon [Rating: 11] Favorites ----------- Power Ion Engine Engine Ion Engine Propulsion Wheel Wheel Wheel Utility Large Storage Unit Device Heat Sink Storage Large Storage Unit Weapon EM Pulse Gun Energy Gun EM Pulse Gun Energy Cannon Light EM Pulse Cannon Build | -11 -10 -10 ------- Run | Yrd Mat Min Slots Evolved . | . . . Power . | . . . Propulsion . | . . . Utility . | . . . Weapon . | . . . Parts Attached 25 | 7 13 5 Power 4 | 1 3 . Engine 4 | 1 3 . Core . | . . . Reactor . | . . . Propulsion 6 | 2 2 2 Treads . | . . . Leg . | . . . Wheel 6 | 2 2 2 Hover . | . . . Flight . | . . . Utility 7 | 2 3 2 Device 3 | 1 1 1 Storage 4 | 1 2 1 Processor . | . . . Hackware . | . . . Protection . | . . . Artifact . | . . . Weapon 8 | 2 5 1 Energy Gun 4 | 2 2 . Energy Cannon 4 | . 3 1 Ballistic Gun . | . . . Ballistic Cannon . | . . . Launcher . | . . . Special Weapon . | . . . Impact Weapon . | . . . Slashing Weapon . | . . . Piercing Weapon . | . . . Special Melee Weapon . | . . . Unidentified Prototypes 1 | . 1 . Parts Lost 10 | . 4 6 Power 2 | . 1 1 Propulsion 5 | . 2 3 Utility . | . . . Weapon 3 | . 1 2 Highest Loss Streak 4 | . 2 4 To Critical Strikes . | . . . Average Backups 10 | 1 9 14 Power 1 | . 1 1 Propulsion 2 | . 2 3 Utility 2 | . 2 3 Weapon 3 | . 2 5 Tool/Special . | . . . Unused Backups 12 | . 3 9 Power 2 | . 1 1 Propulsion 2 | . . 2 Utility 1 | . . 1 Weapon 7 | . 2 5 Tool/Special . | . . . Average Slot Usage (%) 99 | . 98 99 Engine 14 | . 14 14 Wheel 27 | . 27 27 Device 14 | . 14 14 Storage 14 | . 14 14 Energy Gun 20 | . 24 13 Energy Cannon 7 | . 3 14 Peak Build Rating 11 | 7 10 11 Average Rating 8 | 4 7 9 On Entrance 5 | . 7 9 Avg Prop Armor Cover (%) . | . . . Naked Turns . | . . . Heaviest Build 32 | 14 32 30 Greatest Support 26 | 26 26 20 Greatest Overweight (x) 2 | . 2 1 Average Overweight (x) . | . . 1 Largest Inventory Capacity 15 | 8 15 15 Average Capacity 13 | 7 13 15 Most Carried 15 | 3 15 15 Average Carried 10 | 1 9 14 Final Capacity 15 | 8 15 15 Final Carried 13 | 3 13 12 Class Distribution -------------------- 78% | Mutant 21% | Scavenger-Mutant Dominant Class ---------------- Mutant | -10/Materials Mutant | -10/Mines Resources | -11 -10 -10 ----------- Run | Yrd Mat Min Matter Collected 609 | 198 371 40 Remotely . | . . . Salvage Created 780 | 13 699 68 Parts 51 | 4 39 8 Haulers Intercepted 2 | . 2 . Recyclers Shooed . | . . . Parts Field Recycled . | . . . Retrieved Matter . | . . . Parts Self-Destructed . | . . . Prevented . | . . . Parts Restored . | . . . Kills | -11 -10 -10 ------- Run | Yrd Mat Min Combat Hostiles Destroyed 18 | . 15 3 Guns 14 | . 13 1 Cannons 3 | . 2 1 AOE 1 | . . 1 Classes Destroyed 7 | 1 6 . Worker 1 | . 1 . Builder 1 | . 1 . Tunneler 2 | 1 . 1 Hauler 2 | . 2 . Watcher 2 | . 2 . Swarmer 9 | . 6 3 Grunt 9 | . 9 . Best Kill Streak 4 | 1 4 3 Combat Bots Only 3 | . 3 3 Max Kills in Single Turn 1 | 1 1 1 Gunslinging . | . . . Exploded 1 | . . 1 Melee . | . . . Uniques/NPCs Destroyed . | . . . Combat | -11 -10 -10 -------- Run | Yrd Mat Min Hostile Shots Fired 90 | . 63 27 Missed 15 | . 12 3 Hits 75 | . 51 24 Projectile 75 | . 51 24 AOE 8 | . . 8 Critical Strikes 2 | . 2 . Damage Taken 999 | . 591 408 Core 274 | . 117 157 Absorbed by Shields . | . . . Core Remaining (%) 100 | 100 . . Volleys Fired 70 | 1 53 16 Largest 2 | 2 2 2 Hottest 112 | 90 96 112 Shots Fired 140 | 2 106 32 Gun 109 | 2 94 13 Cannon 31 | . 12 19 Launcher . | . . . Special . | . . . Kinetic . | . . . Thermal 84 | 2 82 . Explosive . | . . . Electromagnetic 56 | . 24 32 Robot Hit Streak 10 | 2 10 3 Robot Miss Streak 5 | . 3 5 Penetration Max . | . . . Secondary Targets 1 | . 1 . Max Gunslinging Chain 1 | . 1 . Shots Hit Robots 84 | 2 69 13 Core Hits 39 | 1 32 6 Critical Kills . | . . . Critical Parts Destroyed . | . . . Critical Strikes 5 | . 5 . Burn 4 | . 4 . Corrupt 1 | . 1 . Melee Attacks . | . . . Impact . | . . . Slashing . | . . . Piercing . | . . . Sneak Attacks . | . . . Combat Hostiles . | . . . Follow-up Attacks . | . . . Damage Inflicted 1324 | 25 1010 289 Guns 813 | 25 729 59 Cannons 410 | . 244 166 Explosions 101 | . 37 64 Melee . | . . . Ramming . | . . . Kinetic . | . . . Thermal 736 | 25 647 64 Explosive . | . . . Electromagnetic 588 | . 363 225 Impact . | . . . Slashing . | . . . Piercing . | . . . Highest Corruption 2 | . 2 2 Average Corruption 2 | . 2 2 Corruption Purged . | . . . Corruption Blocked . | . . . Effects 16 | . 10 6 Message Errors 3 | . 2 1 Matter Fused 4 | . 2 2 Heat Flow Errors 3 | . 3 . Energy Discharges 4 | . 2 2 Data Loss (minor) 2 | . 1 1 Overload Shots . | . . . Overflow Damage 29 | . 12 17 Projectiles 29 | . 12 17 Explosions . | . . . Melee . | . . . Knockbacks . | . . . Impact . | . . . Kinetic . | . . . Secondary . | . . . Self-Inflicted Damage 36 | . 36 . Shots 1 | . 1 . Rammed . | . . . Targets Rammed . | . . . Kicked . | . . . Crushed . | . . . Highest Temperature 409 | 30 409 216 Average Temperature 77 | 17 80 73 Received Heat Transfer 246 | . 246 . Effects 1 | . 1 . Energy Bleed 1 | . 1 . Siege Activations . | . . . Martial Activations . | . . . Shielding Activations . | . . . Robots Disrupted . | . . . Combat Hostiles . | . . . Robots Corrupted . | . . . Combat Hostiles . | . . . Parts Fried 4 | . 3 1 Impact Corruptions . | . . . Robots Melted . | . . . Combat Hostiles . | . . . Parts Melted 5 | . 5 . Heat Transferred 2119 | 62 1957 100 Parts Sabotaged . | . . . Parts Stolen . | . . . Parts Stripped . | . . . Power Chain Reactions 2 | . 1 1 Alert | -11 -10 -10 ------- Run | Yrd Mat Min Maximum Alert Level . | . . . Low Security (%) 100 | 100 100 100 Level 1 . | . . . Level 2 . | . . . Level 3 . | . . . Level 4 . | . . . Level 5 . | . . . High Security . | . . . Max Security . | . . . Peak Influence 151 | 5 151 54 Initial 31 | . . 31 Average 49 | 1 72 10 Influence Increases 584 | 5 502 77 Destroy 0b10 Robot/C 360 | . 300 60 Destroy 0b10 Robot/NC 40 | 5 30 5 Destroy Leader 98 | . 88 10 Successful Hack 21 | . 21 . Destroy Structure 5 | . 3 2 Lose Combat Pursuer 60 | . 60 . Influence Decreases 584 | 5 422 157 Entered New Map 49 | . . 49 Time Decay 463 | 5 382 76 Lost Part 72 | . 40 32 Squads Dispatched 4 | . 4 . Investigation 2 | . 2 . Extermination . | . . . Reinforcement 2 | . 2 . Assault . | . . . Garrison . | . . . Intercept . | . . . Searches Triggered . | . . . Construction Impeded . | . . . Haulers Reinforced . | . . . Active Scanning Responses . | . . . Cargo Convoy Interrupts . | . . . Stealth | -11 -10 -10 --------- Run | Yrd Mat Min Distress Signals 3 | . 3 . Communications Jammed . | . . . Distress Signals . | . . . Times Spotted 32 | . 28 4 Peak Tracking Total 5 | . 5 3 Tactical Retreats 4 | . 4 . Traps | -11 -10 -10 ------- Run | Yrd Mat Min Traps Triggered 4 | . 4 . Indirectly . | . . . Trap Hack Attempts . | . . . Triggered . | . . . Disarmed . | . . . Reprogrammed . | . . . Reused . | . . . Traps Extracted . | . . . Installed . | . . . Triggered . | . . . Machines | -11 -10 -10 ---------- Run | Yrd Mat Min Machines Disabled . | . . . Max in Single Turn . | . . . Machines Repaired . | . . . Machines Dismantled . | . . . Machines Sabotaged . | . . . Overloaded Fab Kills . | . . . Hacking | -11 -10 -10 --------- Run | Yrd Mat Min Machines Accessed 4 | . 4 . Terminals 4 | . 4 . Fabricators . | . . . Repair Stations . | . . . Recycling Units . | . . . Scanalyzers . | . . . Garrison Access . | . . . Total Hacks 10 | . 10 . Successful 5 | . 5 . Failed 5 | . 5 . Catastrophic . | . . . Database Lockouts . | . . . Manual 10 | . 10 . Terminals 10 | . 10 . Fabricators . | . . . Repair Stations . | . . . Recycling Units . | . . . Scanalyzers . | . . . Garrison Access . | . . . Terminal Hacks 3 | . 3 . Part Schematic 1 | . 1 . Robot Analysis 2 | . 2 . Fabricator Hacks . | . . . Repair Station Hacks . | . . . Recycling Unit Hacks . | . . . Scanalyzer . | . . . Garrison Access Hacks . | . . . Unauthorized Hacks 2 | . 2 . Terminals 2 | . 2 . Botnet 2 | . 2 . Fabricators . | . . . Repair Stations . | . . . Recycling Units . | . . . Scanalyzers . | . . . Garrison Access . | . . . Data Cores Recovered . | . . . Used . | . . . Hacking Detections 3 | . 3 . Full Trace Events . | . . . Feedback Events . | . . . Feedback Blocked . | . . . Robot Schematics Acquired . | . . . Robots Built . | . . . Authchips . | . . . Time . | . . . Total Robot Build Rating . | . . . Part Schematics Acquired 1 | . 1 . Parts Built . | . . . Authchips . | . . . Time . | . . . Total Part Build Rating . | . . . Part Studies Acquired . | . . . Parts Repaired . | . . . Time . | . . . Parts Recycled . | . . . Recycled Matter . | . . . Retrieved Matter . | . . . Retrieved Components . | . . . Parts Scanalyzed . | . . . Part Schematics Acquired . | . . . Parts Damaged . | . . . Bothacking | -11 -10 -10 ------------ Run | Yrd Mat Min Used RIF Installer . | . . . Robots Hacked . | . . . Non-combat . | . . . Combat . | . . . Robot Hacks Applied . | . . . Relay Couplers Released . | . . . Fabnet Peak Effective % . | . . . Robots Rewired . | . . . Allies Hacked . | . . . Hacks Repelled . | . . . Allies | -11 -10 -10 -------- Run | Yrd Mat Min Total Allies . | . . . Largest Group . | . . . Highest-Rated Group . | . . . Highest-Rated Ally . | . . . Total Orders . | . . . Ally Attacks . | . . . Total Damage . | . . . Kills . | . . . Allies Corrupted . | . . . Allies Melted . | . . . Intel | -11 -10 -10 ------- Run | Yrd Mat Min Active Infowar (turns) 825 | 7 423 395 Terrain 209 | . . 209 Seismic 616 | 7 423 186 Robot Analysis Total 2 | . 2 . Derelict Logs Recovered 1 | . . 1 Drone Launches . | . . . Drone Recoveries . | . . . Exploration | -11 -10 -10 ------------- Run | Yrd Mat Min Turns Passed 1536 | 60 983 493 Spaces Moved 979 | 47 684 248 Core 1 | 1 . . Treads . | . . . Legs . | . . . Wheels 978 | 46 684 248 Hover . | . . . Flight . | . . . Fastest Speed 50 | 50 90 95 Average Speed 93 | 88 93 95 Slowest Speed 110 | 90 110 95 Overloaded Moves . | . . . Propulsion Burnouts . | . . . Robots Hopped . | . . . Potential Cave-ins . | . . . Cave-ins Triggered . | . . . Exploration Rate (%) 47 | 4 93 46 Regions Visited 2 Branch Regions 1 Pre-discovered Areas . | . . . Known Exits Taken . | . . . Unknown Exits Taken 2 | 1 1 . Scrap Searched . | . . . Spaces Dug . | . . . Terrain Destroyed 4 | . 2 2 Melee . | . . . Projectile . | . . . AOE 4 | . 2 2 Terrain Rammed . | . . . Walls Destroyed . | . . . Machines Disabled . | . . . Actions | -11 -10 -10 --------- Run | Yrd Mat Min Total 1453 | 59 922 472 Wait 338 | 2 138 198 Move 977 | 46 683 248 Hop . | . . . Pick Up 25 | 3 19 3 Fast Attach 10 | 7 3 . Attach 9 | . 6 3 Detach 4 | . 4 . Swap 8 | . 5 3 Drop 12 | . 11 1 Fire 70 | 1 53 16 Melee . | . . . Ram . | . . . Kick . | . . . Crush . | . . . Escape Stasis . | . . . Rewire . | . . . Trap . | . . . Miscellaneous . | . . . Route ------- -11/Scrapyard -10/Materials (discovered 5 exits: [*Mat x3] / [*Min x2]) -10/Mines History --------- Turn | Location | Event 8 | -11/Scrapyard | Discovered new exit (range 16) 61 | -11/Scrapyard | Entered Materials 176 | -10/Materials | Discovered new exit (range 16) 269 | -10/Materials | Discovered new exit (range 5) 306 | -10/Materials | Build established: Mutant 636 | -10/Materials | Discovered new exit (range 8) 738 | -10/Materials | Discovered new exit (range 16) 865 | -10/Materials | Discovered new exit (range 15) 912 | -10/Materials | Build established: Scavenger-Mutant 1044 | -10/Materials | Entered Mines 1077 | -10/Mines | Assembled infested the area 1089 | -10/Mines | Learned Materials interactive machine intel 1094 | -10/Mines | Found a damaged Exp. Sensor Array with a note attached 1232 | -10/Mines | Build established: Mutant 1435 | -10/Mines | Core integrity fell below 50% 1532 | -10/Mines | Core integrity fell below 20% 1537 | -10/Mines | Destroyed by D-53 Grenadier with Mini Grenade Launcher Last Messages --------------- 01438_ R-06 Scavenger collects Lgt. Ion Engine. 01440_ S-10 Pest destroyed. 01441_ Extracted 47 energy. 01442_ R-06 Scavenger collects Flight Unit. 01443_ Chain reaction triggered in Lgt. Ion Engine. 01443_ S-10 Pest destroyed. 01444_ Extracted 47 energy. 01446_ Acquired Hcp. Battery. 01452_ Acquired 20 matter. 01455_ System corrupted: Component data lost. 01503_ U-05 Engineer lays Concrete. 01505_ U-05 Engineer builds a Wall. 01509_ U-05 Engineer lays Concrete. 01519_ System corrupted: Matter fused (-9). 01523_ EM Pulse Gun destroyed. 01527_ Destroyed Shock Absorption System. 01531_ Lgt. Ion Engine destroyed. 01535_ Lgt. EM Pulse Cannon destroyed. 01536_ U-05 Engineer lays Concrete. 01537_ Wheel destroyed. Map ----- +----------------------------------------------------+ | ?????????????????????????????????????????????????? | | ?????????????????????????????????????????????????? | | ?????????????????????????????????????????????????? | | ?????????????????????????????????????????????????? | | ?????????????????????????????????????????????????? | | ?????????????????????????????????????????????????? | | ?????????????????????????????????????????????????? | | ?????????????????????????????????????????? ??????? | | ????????????????????????????????????????? ???????? | | ??????????????????????????????????????### ???????? | | ?????????????????????????????????????? ????????? | | ?????????????????????????????????????? ????????? | | ?????????????????????????????????????? #????????? | | ???????????????????##????????????????? #????????? | | ??????????????????## #??????????????## ##???????? | | ??????????????????# ?????????????## #???????? | | ??????????????????# #???????????## #???##### | | ?????????????????## #??????????# #???## ## | | ?????????????????# #?????????# #????# | | ?????????????????# ?????????# #?????# | | ??????????????????# ####?????# ##????# | | ???????????????????# ##????# ##???## | | ???????????????????# ##??## ##???# | | ????????????????????# #### ##### | | ????????????????????# d ### | | ????????????????????# @ u ## [ | | ????????????????????# #### %= ### | | ????????????????????# ### ##?##== ##?? | | ?????????????#####??## ##?# #??#" ##??? | | ????????????## ##??## #??# #??## ###???? | | ???????????## ##??##### #??# ##### ###?????? | | ???????????# ##???### #??# ##??????#? | | ???????????# #???# #### #######????##?## | | ???????????## ## #???# #??????????????? | | ????????????###?## #???# ########?????????#????? | | ????????????????## #???# ##???????????????????#? | | ????????????????# ##??# ###????#?????#???##??# | | ????????????????# #### ##???????#?#??????#? | | ????????????????## ## #??????#??#???????? | | ????????????????## #???##????????????# | | ???????????????## ##???????#??#??????? | | ???????????????# ## ##???#?????#????????# | | ???????????????# ##?###????????????#?#???#? | | ???????????????# ###?????????#?#??#??#????# | | ??????????????# # % ##???#????#????????????? | | ????????????? ## % ########???#?#??#??#### | | ????????????####?# ##?????#?#?## # | | ??????????? #####????#?# | | ??????????? ###### ## #??????### | | ???????????# ##### ##????# #### ########### | +----------------------------------------------------+ Best States ------------- Heat Dissipation 35 Energy Generation 10 Energy Capacity 250 Matter Stores 300 Matter Capacity 300 Sight Range 16 Terrain Scan Range 16 Terrain Scan Density 10 Evasion (%) 42 Item Schematics ----------------- Huge Storage Unit | -10/Materials | Hacked Robot Schematics ------------------ None Fabricated ------------ Nothing Repaired ---------- Nothing Studied --------- None Alien Tech Used ----------------- None Achievements -------------- None Challenges ------------ None Game ------ Seed SuspensionDeuteriumDiverter Manual? 0 Play Time 00:15:48 Cumulative 190.8 hours Start 2026.07.20 @ 14:52:01 End 2026.07.20 @ 15:09:35 Sessions 1 Manual Loads 0 Difficulty Rogue Special Mode None Game No. 254 Rogue 254 Adventurer 0 Explorer 0 Win Type - Total 4 Types 4/0/0/0/0/0/0/0/0/0 Lore% 78 Gallery% 59 Achievement% 46 Wizard Run 0 Options --------- Layout 0 ASCII 0 Keyboard 0 Movement Numpad Keybinds 0 Fullscreen 1 Font 18/Terminus Map View 76x50 Zoom Use 0% Tactical HUD 1 Map Filters NONE Filters NONE Steam 1 RUN: fcb5ae77-4135-4acd-8008-9f6e0b80df3f